[Event "Titled Tuesday Blitz April 4 Early 2023"]
[White "Vidit, Santosh Gujrathi"]
[Black "Levitskiy, Andrey"]
[WhiteFideId "5029465"]
[BlackFideId "14132885"]
[WhiteElo "2651"]
[BlackElo "2341"]
[Result "1-0"]
[Round "08"]
[TimeControl "180+2"]
[Date "2023.04.04"]
[WhiteClock "0:01:49"]
[BlackClock "0:00:04"]

1. Nf3 {[%clk 0:03:00]}  d5 {[%clk 0:02:59]} 2. g3 {[%clk 0:03:00]}  Nd7 {[%clk 0:02:59]} 3. d4 {[%clk 0:02:57]}  Nb6 {[%clk 0:02:59]} 4. Bg2 {[%clk 0:02:55]}  Bf5 {[%clk 0:03:00]} 5. Nh4 {[%clk 0:02:52]}  Bg6 {[%clk 0:02:57]} 6. Nxg6 {[%clk 0:02:48]}  hxg6 {[%clk 0:02:58]} 7. e4 {[%clk 0:02:45]}  dxe4 {[%clk 0:02:44]} 8. Bxe4 {[%clk 0:02:46]}  c6 {[%clk 0:02:45]} 9. c3 {[%clk 0:02:46]}  e6 {[%clk 0:02:41]} 10. Nd2 {[%clk 0:02:45]}  Ne7 {[%clk 0:02:32]} 11. Qe2 {[%clk 0:02:43]}  Nf5 {[%clk 0:02:28]} 12. O-O {[%clk 0:02:41]}  Be7 {[%clk 0:02:19]} 13. Bg2 {[%clk 0:02:41]}  Qd7 {[%clk 0:01:47]} 14. Nf3 {[%clk 0:02:40]}  Bf6 {[%clk 0:01:35]} 15. a4 {[%clk 0:02:37]}  Nd5 {[%clk 0:01:30]} 16. a5 {[%clk 0:02:36]}  Rd8 {[%clk 0:01:10]} 17. a6 {[%clk 0:02:30]}  b6 {[%clk 0:01:10]} 18. h4 {[%clk 0:02:29]}  Qc7 {[%clk 0:00:55]} 19. Rd1 {[%clk 0:02:20]}  O-O {[%clk 0:00:48]} 20. Ng5 {[%clk 0:02:14]}  Rfe8 {[%clk 0:00:38]} 21. Ne4 {[%clk 0:02:09]}  Be7 {[%clk 0:00:37]} 22. h5 {[%clk 0:02:08]}  gxh5 {[%clk 0:00:33]} 23. Qxh5 {[%clk 0:02:08]}  Nf6 {[%clk 0:00:34]} 24. Nxf6+ {[%clk 0:02:07]}  Bxf6 {[%clk 0:00:34]} 25. Bf4 {[%clk 0:02:08]}  Qc8 {[%clk 0:00:34]} 26. Be4 {[%clk 0:02:04]}  g6 {[%clk 0:00:33]} 27. Qf3 {[%clk 0:02:04]}  Ne7 {[%clk 0:00:14]} 28. Kg2 {[%clk 0:02:04]}  Bg7 {[%clk 0:00:14]} 29. Rh1 {[%clk 0:02:02]}  Nd5 {[%clk 0:00:14]} 30. Be5 {[%clk 0:01:56]}  c5 {[%clk 0:00:09]} 31. Bxg7 {[%clk 0:01:49]}  Kxg7 {[%clk 0:00:10]} 32. Rh7+ {[%clk 0:01:49]}  Kxh7 {[%clk 0:00:04]} 33. Qxf7+ {[%clk 0:01:49]}  Kh6 {[%clk 0:00:04]} 34. Qxg6# {[%clk 0:01:49]} 1-0


[Site "https://www.chess.com"]

[Event "Titled Tuesday Blitz April 4 Early 2023"]
[White "Lenderman, Aleksandr"]
[Black "Thomforde-Toates, Noah"]
[WhiteFideId "2021285"]
[BlackFideId "30951992"]
[WhiteElo "2607"]
[BlackElo "2689"]
[Result "0-1"]
[Round "08"]
[TimeControl "180+2"]
[Date "2023.04.04"]
[WhiteClock "0:00:14"]
[BlackClock "0:00:10"]

1. Nf3 {[%clk 0:03:00]}  Nf6 {[%clk 0:03:00]} 2. b3 {[%clk 0:02:57]}  g6 {[%clk 0:03:00]} 3. Bb2 {[%clk 0:02:57]}  Bg7 {[%clk 0:03:01]} 4. g3 {[%clk 0:02:58]}  O-O {[%clk 0:03:01]} 5. Bg2 {[%clk 0:02:59]}  d6 {[%clk 0:03:00]} 6. d4 {[%clk 0:02:57]}  Nc6 {[%clk 0:02:56]} 7. O-O {[%clk 0:02:56]}  Nd7 {[%clk 0:02:56]} 8. Qd2 {[%clk 0:02:29]}  e5 {[%clk 0:02:54]} 9. dxe5 {[%clk 0:02:27]}  Ndxe5 {[%clk 0:02:53]} 10. Nxe5 {[%clk 0:02:27]}  Nxe5 {[%clk 0:02:53]} 11. Nc3 {[%clk 0:02:25]}  Bd7 {[%clk 0:02:50]} 12. Bxb7 {[%clk 0:02:20]}  Rb8 {[%clk 0:02:46]} 13. Bd5 {[%clk 0:02:17]}  Qc8 {[%clk 0:02:39]} 14. Rfd1 {[%clk 0:02:14]}  h5 {[%clk 0:02:13]} 15. Rab1 {[%clk 0:02:11]}  h4 {[%clk 0:02:08]} 16. Bg2 {[%clk 0:02:10]}  Bh3 {[%clk 0:02:07]} 17. Nd5 {[%clk 0:02:06]}  Re8 {[%clk 0:02:04]} 18. Qg5 {[%clk 0:01:59]}  Bxg2 {[%clk 0:02:03]} 19. Kxg2 {[%clk 0:02:00]}  h3+ {[%clk 0:02:03]} 20. Kf1 {[%clk 0:01:51]}  Qb7 {[%clk 0:02:00]} 21. f3 {[%clk 0:01:50]}  c6 {[%clk 0:01:14]} 22. Nf6+ {[%clk 0:01:48]}  Bxf6 {[%clk 0:01:13]} 23. Qxf6 {[%clk 0:01:49]}  Re6 {[%clk 0:01:11]} 24. Qf4 {[%clk 0:01:47]}  Qa6 {[%clk 0:01:10]} 25. Rxd6 {[%clk 0:01:32]}  Qxa2 {[%clk 0:00:39]} 26. Rdd1 {[%clk 0:01:21]}  Rbe8 {[%clk 0:00:35]} 27. Qd4 {[%clk 0:01:17]}  Qa6 {[%clk 0:00:23]} 28. c4 {[%clk 0:01:11]}  c5 {[%clk 0:00:20]} 29. Qf4 {[%clk 0:01:05]}  Qb7 {[%clk 0:00:20]} 30. Bc3 {[%clk 0:00:53]}  Nc6 {[%clk 0:00:20]} 31. Rd2 {[%clk 0:00:42]}  Nd4 {[%clk 0:00:15]} 32. Bxd4 {[%clk 0:00:41]}  cxd4 {[%clk 0:00:15]} 33. Kf2 {[%clk 0:00:37]}  Qb6 {[%clk 0:00:13]} 34. Kf1 {[%clk 0:00:29]}  Qb7 {[%clk 0:00:13]} 35. Rbb2 {[%clk 0:00:26]}  Qa6 {[%clk 0:00:11]} 36. Qxd4 {[%clk 0:00:23]}  Qa1+ {[%clk 0:00:10]} 37. Rd1 {[%clk 0:00:23]}  Qa3 {[%clk 0:00:07]} 38. Kf2 {[%clk 0:00:19]}  Qb4 {[%clk 0:00:07]} 39. e4 {[%clk 0:00:18]}  a5 {[%clk 0:00:06]} 40. Qd2 {[%clk 0:00:16]}  Qb6+ {[%clk 0:00:06]} 41. Qe3 {[%clk 0:00:16]}  Qb4 {[%clk 0:00:07]} 42. Rbd2 {[%clk 0:00:15]}  f5 {[%clk 0:00:07]} 43. Rd8 {[%clk 0:00:14]}  fxe4 {[%clk 0:00:07]} 44. fxe4 {[%clk 0:00:13]}  Qf8+ {[%clk 0:00:05]} 45. Qf4 {[%clk 0:00:12]}  Rxd8 {[%clk 0:00:05]} 46. Qxf8+ {[%clk 0:00:12]}  Rxf8+ {[%clk 0:00:05]} 47. Ke3 {[%clk 0:00:12]}  Rfe8 {[%clk 0:00:05]} 48. Rd4 {[%clk 0:00:12]}  Rb6 {[%clk 0:00:06]} 49. Rd3 {[%clk 0:00:12]}  Reb8 {[%clk 0:00:06]} 50. Rd5 {[%clk 0:00:12]}  Rxb3+ {[%clk 0:00:07]} 51. Kf4 {[%clk 0:00:13]}  a4 {[%clk 0:00:07]} 52. Ra5 {[%clk 0:00:13]}  a3 {[%clk 0:00:08]} 53. Kg5 {[%clk 0:00:13]}  Kf7 {[%clk 0:00:07]} 54. Ra7+ {[%clk 0:00:13]}  Ke6 {[%clk 0:00:08]} 55. Kxg6 {[%clk 0:00:13]}  Ke5 {[%clk 0:00:08]} 56. Kg5 {[%clk 0:00:13]}  Kxe4 {[%clk 0:00:09]} 57. Kg4 {[%clk 0:00:14]}  Kd4 {[%clk 0:00:10]} 58. Kxh3 {[%clk 0:00:14]}  Kxc4 {[%clk 0:00:10]} 0-1


[Site "https://www.chess.com"]

[Event "Titled Tuesday Blitz April 4 Early 2023"]
[White "Movahed, Sina"]
[Black "Matinian, Nikita"]
[WhiteFideId "42520835"]
[BlackFideId "24129100"]
[WhiteElo "2225"]
[BlackElo "2422"]
[Result "1-0"]
[Round "08"]
[TimeControl "180+2"]
[Date "2023.04.04"]
[WhiteClock "0:02:17"]
[BlackClock "0:01:18"]

1. Nf3 {[%clk 0:03:00]}  Nf6 {[%clk 0:02:58]} 2. g3 {[%clk 0:03:00]}  g6 {[%clk 0:02:58]} 3. Bg2 {[%clk 0:03:01]}  Bg7 {[%clk 0:02:59]} 4. O-O {[%clk 0:03:02]}  O-O {[%clk 0:03:00]} 5. c4 {[%clk 0:03:03]}  d6 {[%clk 0:02:59]} 6. d4 {[%clk 0:03:03]}  c6 {[%clk 0:02:59]} 7. Nc3 {[%clk 0:03:02]}  Bf5 {[%clk 0:02:59]} 8. Re1 {[%clk 0:02:58]}  Ne4 {[%clk 0:02:58]} 9. Bd2 {[%clk 0:02:57]}  Na6 {[%clk 0:02:40]} 10. Rc1 {[%clk 0:02:51]}  Nc7 {[%clk 0:02:33]} 11. b3 {[%clk 0:02:44]}  Rc8 {[%clk 0:02:25]} 12. Nh4 {[%clk 0:02:42]}  Nxc3 {[%clk 0:02:24]} 13. Bxc3 {[%clk 0:02:39]}  Bg4 {[%clk 0:02:23]} 14. h3 {[%clk 0:02:37]}  Bd7 {[%clk 0:02:23]} 15. Qd2 {[%clk 0:02:37]}  b5 {[%clk 0:02:23]} 16. e4 {[%clk 0:02:35]}  bxc4 {[%clk 0:02:20]} 17. bxc4 {[%clk 0:02:35]}  Ne6 {[%clk 0:02:04]} 18. Nf3 {[%clk 0:02:32]}  Qb6 {[%clk 0:01:55]} 19. e5 {[%clk 0:02:30]}  Qa6 {[%clk 0:01:47]} 20. Bf1 {[%clk 0:02:26]}  Qb7 {[%clk 0:01:39]} 21. Rb1 {[%clk 0:02:23]}  Qc7 {[%clk 0:01:38]} 22. Ba5 {[%clk 0:02:22]}  Bh6 {[%clk 0:01:18]} 23. Qc3 {[%clk 0:02:17]} 1-0


[Site "https://www.chess.com"]

[Event "Titled Tuesday Blitz April 4 Early 2023"]
[White "Hovhannisyan, Robert"]
[Black "Jessel, Stephen"]
[WhiteFideId "13302507"]
[BlackFideId "628859"]
[WhiteElo "2570"]
[BlackElo "2268"]
[Result "1-0"]
[Round "08"]
[TimeControl "180+2"]
[Date "2023.04.04"]
[WhiteClock "0:00:06"]
[BlackClock "0:00:04"]

1. e4 {[%clk 0:03:00]}  e6 {[%clk 0:02:58]} 2. d4 {[%clk 0:02:55]}  d5 {[%clk 0:02:58]} 3. Nc3 {[%clk 0:02:55]}  Nf6 {[%clk 0:02:56]} 4. Bg5 {[%clk 0:02:55]}  h6 {[%clk 0:02:56]} 5. Bxf6 {[%clk 0:02:54]}  Qxf6 {[%clk 0:02:57]} 6. a3 {[%clk 0:02:52]}  Qd8 {[%clk 0:02:49]} 7. Nf3 {[%clk 0:02:48]}  Be7 {[%clk 0:02:49]} 8. Bd3 {[%clk 0:02:48]}  O-O {[%clk 0:02:49]} 9. O-O {[%clk 0:02:47]}  b6 {[%clk 0:02:36]} 10. Re1 {[%clk 0:02:43]}  c6 {[%clk 0:02:33]} 11. Ne5 {[%clk 0:02:40]}  Qc7 {[%clk 0:02:18]} 12. Qh5 {[%clk 0:02:34]}  Nd7 {[%clk 0:02:11]} 13. Nxd7 {[%clk 0:02:20]}  Qxd7 {[%clk 0:02:09]} 14. Re3 {[%clk 0:02:09]}  dxe4 {[%clk 0:01:51]} 15. Rxe4 {[%clk 0:01:55]}  f5 {[%clk 0:01:51]} 16. Re2 {[%clk 0:01:40]}  Qxd4 {[%clk 0:01:51]} 17. Rae1 {[%clk 0:01:40]}  Bxa3 {[%clk 0:01:39]} 18. bxa3 {[%clk 0:01:29]}  Qxc3 {[%clk 0:01:39]} 19. Re3 {[%clk 0:01:30]}  Qf6 {[%clk 0:01:30]} 20. Bc4 {[%clk 0:01:30]}  Qf7 {[%clk 0:01:02]} 21. Qf3 {[%clk 0:01:14]}  b5 {[%clk 0:00:47]} 22. Bxb5 {[%clk 0:00:58]}  Bd7 {[%clk 0:00:46]} 23. Bxc6 {[%clk 0:00:50]}  Bxc6 {[%clk 0:00:41]} 24. Qxc6 {[%clk 0:00:51]}  Rac8 {[%clk 0:00:42]} 25. Qxe6 {[%clk 0:00:43]}  Qxe6 {[%clk 0:00:39]} 26. Rxe6 {[%clk 0:00:44]}  Rxc2 {[%clk 0:00:39]} 27. h4 {[%clk 0:00:41]}  Ra2 {[%clk 0:00:32]} 28. Ra6 {[%clk 0:00:35]}  Rf7 {[%clk 0:00:31]} 29. g3 {[%clk 0:00:33]}  Kh7 {[%clk 0:00:29]} 30. h5 {[%clk 0:00:32]}  f4 {[%clk 0:00:28]} 31. g4 {[%clk 0:00:32]}  f3 {[%clk 0:00:27]} 32. Ra4 {[%clk 0:00:24]}  Re2 {[%clk 0:00:18]} 33. Rd1 {[%clk 0:00:14]}  Rfe7 {[%clk 0:00:18]} 34. Rf4 {[%clk 0:00:12]}  R7e4 {[%clk 0:00:16]} 35. Rd4 {[%clk 0:00:09]}  Rxd4 {[%clk 0:00:15]} 36. Rxd4 {[%clk 0:00:10]}  Re5 {[%clk 0:00:08]} 37. Kh2 {[%clk 0:00:08]}  g6 {[%clk 0:00:07]} 38. Rd7+ {[%clk 0:00:07]}  Kg8 {[%clk 0:00:07]} 39. hxg6 {[%clk 0:00:08]}  Rg5 {[%clk 0:00:08]} 40. Kh3 {[%clk 0:00:06]}  Rxg6 {[%clk 0:00:08]} 41. Rxa7 {[%clk 0:00:06]}  Rb6 {[%clk 0:00:07]} 42. Ra5 {[%clk 0:00:05]}  Kg7 {[%clk 0:00:06]} 43. Kg3 {[%clk 0:00:05]}  Rb3 {[%clk 0:00:06]} 44. a4 {[%clk 0:00:04]}  Ra3 {[%clk 0:00:07]} 45. Ra8 {[%clk 0:00:04]}  Kh7 {[%clk 0:00:02]} 46. a5 {[%clk 0:00:04]}  Kg7 {[%clk 0:00:03]} 47. a6 {[%clk 0:00:04]}  Kh7 {[%clk 0:00:04]} 48. Kf4 {[%clk 0:00:04]}  Kg7 {[%clk 0:00:04]} 49. Ke4 {[%clk 0:00:03]}  Kh7 {[%clk 0:00:04]} 50. Kf4 {[%clk 0:00:04]}  Kg7 {[%clk 0:00:04]} 51. Kg3 {[%clk 0:00:05]}  Kh7 {[%clk 0:00:04]} 52. Rf8 {[%clk 0:00:05]}  Rxa6 {[%clk 0:00:03]} 53. Rxf3 {[%clk 0:00:06]}  Kg6 {[%clk 0:00:03]} 54. Rf5 {[%clk 0:00:04]}  Ra3+ {[%clk 0:00:03]} 55. f3 {[%clk 0:00:05]}  Rb3 {[%clk 0:00:04]} 56. Rc5 {[%clk 0:00:05]}  Ra3 {[%clk 0:00:04]} 57. Rc6+ {[%clk 0:00:05]}  Kg7 {[%clk 0:00:05]} 58. Rc5 {[%clk 0:00:06]}  Rb3 {[%clk 0:00:05]} 59. Ra5 {[%clk 0:00:06]}  Kg6 {[%clk 0:00:05]} 60. Ra6+ {[%clk 0:00:07]}  Kg7 {[%clk 0:00:05]} 61. Ra5 {[%clk 0:00:07]}  Kg6 {[%clk 0:00:06]} 62. Rd5 {[%clk 0:00:08]}  Kg7 {[%clk 0:00:06]} 63. Kf4 {[%clk 0:00:08]}  Kg6 {[%clk 0:00:06]} 64. Rd6+ {[%clk 0:00:08]}  Kg7 {[%clk 0:00:06]} 65. Rc6 {[%clk 0:00:08]}  Ra3 {[%clk 0:00:03]} 66. Rc5 {[%clk 0:00:08]}  Kg6 {[%clk 0:00:03]} 67. Rc4 {[%clk 0:00:09]}  Kg7 {[%clk 0:00:03]} 68. Rd4 {[%clk 0:00:09]}  Kg6 {[%clk 0:00:04]} 69. Re4 {[%clk 0:00:09]}  Kg7 {[%clk 0:00:04]} 70. Kg3 {[%clk 0:00:09]}  Kg6 {[%clk 0:00:04]} 71. Re5 {[%clk 0:00:09]}  Kg7 {[%clk 0:00:05]} 72. Kg2 {[%clk 0:00:09]}  Kg6 {[%clk 0:00:05]} 73. Rd5 {[%clk 0:00:09]}  Kg7 {[%clk 0:00:06]} 74. f4 {[%clk 0:00:09]}  Kg6 {[%clk 0:00:06]} 75. Rd6+ {[%clk 0:00:10]}  Kg7 {[%clk 0:00:06]} 76. f5 {[%clk 0:00:10]}  Rb3 {[%clk 0:00:06]} 77. Re6 {[%clk 0:00:10]}  Ra3 {[%clk 0:00:06]} 78. Kf2 {[%clk 0:00:10]}  Rb3 {[%clk 0:00:07]} 79. Re3 {[%clk 0:00:11]}  Rb4 {[%clk 0:00:07]} 80. Kg3 {[%clk 0:00:11]}  Rb1 {[%clk 0:00:07]} 81. Re7+ {[%clk 0:00:10]}  Kg8 {[%clk 0:00:07]} 82. Re6 {[%clk 0:00:11]}  Kg7 {[%clk 0:00:06]} 83. Rg6+ {[%clk 0:00:11]}  Kh7 {[%clk 0:00:07]} 84. Ra6 {[%clk 0:00:12]}  Kg7 {[%clk 0:00:07]} 85. Ra7+ {[%clk 0:00:12]}  Kg8 {[%clk 0:00:08]} 86. Kf4 {[%clk 0:00:11]}  Rb5 {[%clk 0:00:08]} 87. f6 {[%clk 0:00:10]}  Kf8 {[%clk 0:00:08]} 88. Rh7 {[%clk 0:00:08]}  Rb4+ {[%clk 0:00:05]} 89. Kf5 {[%clk 0:00:07]}  Rb5+ {[%clk 0:00:06]} 90. Ke6 {[%clk 0:00:06]}  Rb6+ {[%clk 0:00:06]} 91. Ke5 {[%clk 0:00:07]}  Rb5+ {[%clk 0:00:06]} 92. Kf4 {[%clk 0:00:07]}  Rb4+ {[%clk 0:00:07]} 93. Kg3 {[%clk 0:00:07]}  Rb3+ {[%clk 0:00:06]} 94. Kh4 {[%clk 0:00:06]}  Rb1 {[%clk 0:00:05]} 95. Rxh6 {[%clk 0:00:06]}  Kf7 {[%clk 0:00:05]} 96. Kh5 {[%clk 0:00:04]}  Rh1+ {[%clk 0:00:04]} 97. Kg5 {[%clk 0:00:04]}  Rb1 {[%clk 0:00:02]} 98. Rh7+ {[%clk 0:00:04]}  Kg8 {[%clk 0:00:03]} 99. Rg7+ {[%clk 0:00:04]}  Kf8 {[%clk 0:00:04]} 100. Ra7 {[%clk 0:00:05]}  Rg1 {[%clk 0:00:03]} 101. Ra8+ {[%clk 0:00:05]}  Kf7 {[%clk 0:00:03]} 102. Ra7+ {[%clk 0:00:06]}  Kf8 {[%clk 0:00:04]} 103. Kf5 {[%clk 0:00:06]}  Rf1+ {[%clk 0:00:04]} 104. Kg6 {[%clk 0:00:06]}  Ke8 {[%clk 0:00:05]} 105. Ra8+ {[%clk 0:00:07]}  Kd7 {[%clk 0:00:05]} 106. f7 {[%clk 0:00:07]}  Ke7 {[%clk 0:00:04]} 107. Re8+ {[%clk 0:00:06]} 1-0


[Site "https://www.chess.com"]

[Event "Titled Tuesday Blitz April 4 Early 2023"]
[White "Costachi, Mihnea"]
[Black "Fishchuk, Vladyslav"]
[WhiteFideId "1217518"]
[BlackFideId "34122117"]
[WhiteElo "2456"]
[BlackElo "2082"]
[Result "1-0"]
[Round "08"]
[TimeControl "180+2"]
[Date "2023.04.04"]
[WhiteClock "0:00:38"]
[BlackClock "0:00:04"]

1. Nf3 {[%clk 0:03:00]}  d5 {[%clk 0:02:59]} 2. d4 {[%clk 0:03:01]}  Nf6 {[%clk 0:02:58]} 3. c4 {[%clk 0:03:01]}  e6 {[%clk 0:02:57]} 4. Nc3 {[%clk 0:03:02]}  a6 {[%clk 0:02:57]} 5. cxd5 {[%clk 0:03:02]}  exd5 {[%clk 0:02:58]} 6. Bg5 {[%clk 0:03:02]}  Be6 {[%clk 0:02:56]} 7. e3 {[%clk 0:03:02]}  Nbd7 {[%clk 0:02:55]} 8. Bd3 {[%clk 0:03:03]}  Bd6 {[%clk 0:02:53]} 9. O-O {[%clk 0:03:03]}  c6 {[%clk 0:02:52]} 10. Bf4 {[%clk 0:03:04]}  Qc7 {[%clk 0:02:51]} 11. Qd2 {[%clk 0:03:04]}  O-O {[%clk 0:02:50]} 12. h3 {[%clk 0:03:04]}  Rfe8 {[%clk 0:02:47]} 13. Rfe1 {[%clk 0:02:59]}  Nf8 {[%clk 0:02:35]} 14. Rac1 {[%clk 0:02:58]}  Ng6 {[%clk 0:02:32]} 15. Bxd6 {[%clk 0:02:57]}  Qxd6 {[%clk 0:02:33]} 16. Na4 {[%clk 0:02:57]}  Ne4 {[%clk 0:02:25]} 17. Qc2 {[%clk 0:02:57]}  f5 {[%clk 0:02:23]} 18. Nc5 {[%clk 0:02:58]}  Rab8 {[%clk 0:02:08]} 19. b4 {[%clk 0:02:58]}  Qd8 {[%clk 0:01:34]} 20. a4 {[%clk 0:02:53]}  Nh4 {[%clk 0:01:34]} 21. Qe2 {[%clk 0:02:28]}  Bc8 {[%clk 0:01:22]} 22. b5 {[%clk 0:02:17]}  axb5 {[%clk 0:01:19]} 23. axb5 {[%clk 0:02:18]}  b6 {[%clk 0:01:02]} 24. Nb3 {[%clk 0:02:15]}  cxb5 {[%clk 0:00:51]} 25. Bxb5 {[%clk 0:02:11]}  Nxf3+ {[%clk 0:00:41]} 26. Qxf3 {[%clk 0:01:57]}  Bd7 {[%clk 0:00:41]} 27. Bd3 {[%clk 0:01:44]}  Qe7 {[%clk 0:00:38]} 28. Rc7 {[%clk 0:01:37]}  Qd6 {[%clk 0:00:35]} 29. Rec1 {[%clk 0:01:36]}  Rec8 {[%clk 0:00:35]} 30. Rxc8+ {[%clk 0:01:34]}  Rxc8 {[%clk 0:00:36]} 31. Rxc8+ {[%clk 0:01:32]}  Bxc8 {[%clk 0:00:37]} 32. Qd1 {[%clk 0:01:27]}  Bd7 {[%clk 0:00:33]} 33. Qc2 {[%clk 0:01:24]}  Qc6 {[%clk 0:00:31]} 34. Bxe4 {[%clk 0:01:17]}  fxe4 {[%clk 0:00:30]} 35. Qxc6 {[%clk 0:01:14]}  Bxc6 {[%clk 0:00:31]} 36. Kf1 {[%clk 0:01:15]}  Kf7 {[%clk 0:00:27]} 37. Ke2 {[%clk 0:01:15]}  Ke6 {[%clk 0:00:28]} 38. Kd2 {[%clk 0:01:15]}  Bb5 {[%clk 0:00:25]} 39. g3 {[%clk 0:01:12]}  Kd6 {[%clk 0:00:24]} 40. Kc3 {[%clk 0:01:11]}  Bc4 {[%clk 0:00:19]} 41. Nd2 {[%clk 0:01:10]}  Bd3 {[%clk 0:00:17]} 42. f4 {[%clk 0:01:07]}  Kc6 {[%clk 0:00:16]} 43. Kb4 {[%clk 0:01:06]}  Be2 {[%clk 0:00:14]} 44. g4 {[%clk 0:01:04]}  Bd3 {[%clk 0:00:14]} 45. g5 {[%clk 0:01:03]}  g6 {[%clk 0:00:13]} 46. h4 {[%clk 0:01:03]}  Be2 {[%clk 0:00:13]} 47. Nb1 {[%clk 0:01:00]}  Kd6 {[%clk 0:00:14]} 48. Nc3 {[%clk 0:01:00]}  Bc4 {[%clk 0:00:14]} 49. Nd1 {[%clk 0:01:00]}  Ke6 {[%clk 0:00:13]} 50. Nb2 {[%clk 0:00:58]}  Be2 {[%clk 0:00:12]} 51. Na4 {[%clk 0:00:58]}  b5 {[%clk 0:00:10]} 52. Nc3 {[%clk 0:00:58]}  Bd3 {[%clk 0:00:06]} 53. Nxb5 {[%clk 0:00:59]}  Kf5 {[%clk 0:00:07]} 54. Nc7 {[%clk 0:00:42]}  Kg4 {[%clk 0:00:07]} 55. Nxd5 {[%clk 0:00:42]}  Kxh4 {[%clk 0:00:07]} 56. Nf6 {[%clk 0:00:40]}  Kg3 {[%clk 0:00:08]} 57. d5 {[%clk 0:00:38]}  Kf3 {[%clk 0:00:08]} 58. d6 {[%clk 0:00:38]}  Kxe3 {[%clk 0:00:04]} 59. d7 {[%clk 0:00:38]} 1-0


[Site "https://www.chess.com"]

[Event "Titled Tuesday Blitz April 4 Early 2023"]
[White "Belov, Alexei"]
[Black "Mahdavi, Reza"]
[WhiteFideId "4128206"]
[BlackFideId "12595926"]
[WhiteElo "2633"]
[BlackElo "2357"]
[Result "1-0"]
[Round "08"]
[TimeControl "180+2"]
[Date "2023.04.04"]
[WhiteClock "0:00:12"]
[BlackClock "0:01:16"]

1. e4 {[%clk 0:03:00]}  c5 {[%clk 0:03:00]} 2. Nf3 {[%clk 0:03:00]}  e6 {[%clk 0:03:00]} 3. d4 {[%clk 0:03:00]}  cxd4 {[%clk 0:03:01]} 4. Nxd4 {[%clk 0:03:01]}  Nc6 {[%clk 0:03:02]} 5. Nc3 {[%clk 0:03:01]}  Qc7 {[%clk 0:03:03]} 6. Be2 {[%clk 0:03:00]}  a6 {[%clk 0:03:03]} 7. O-O {[%clk 0:03:00]}  Nf6 {[%clk 0:03:04]} 8. a4 {[%clk 0:03:00]}  Be7 {[%clk 0:03:01]} 9. Be3 {[%clk 0:02:59]}  O-O {[%clk 0:03:01]} 10. f4 {[%clk 0:02:59]}  d6 {[%clk 0:03:02]} 11. Kh1 {[%clk 0:02:58]}  Nxd4 {[%clk 0:03:02]} 12. Qxd4 {[%clk 0:02:58]}  e5 {[%clk 0:03:03]} 13. Qd3 {[%clk 0:02:59]}  exf4 {[%clk 0:03:01]} 14. Bxf4 {[%clk 0:02:58]}  Be6 {[%clk 0:03:02]} 15. Rad1 {[%clk 0:02:56]}  Rfd8 {[%clk 0:03:01]} 16. Qg3 {[%clk 0:02:54]}  Kh8 {[%clk 0:03:01]} 17. e5 {[%clk 0:02:47]}  dxe5 {[%clk 0:03:00]} 18. Bxe5 {[%clk 0:02:47]}  Qb6 {[%clk 0:03:00]} 19. Rxd8+ {[%clk 0:02:39]}  Rxd8 {[%clk 0:02:57]} 20. Bc7 {[%clk 0:02:18]}  Qxb2 {[%clk 0:02:45]} 21. Bxd8 {[%clk 0:02:18]}  Bxd8 {[%clk 0:02:46]} 22. Qb8 {[%clk 0:02:17]}  Qxc3 {[%clk 0:02:44]} 23. Qxd8+ {[%clk 0:02:13]}  Ng8 {[%clk 0:02:44]} 24. Bd3 {[%clk 0:01:57]}  g6 {[%clk 0:02:34]} 25. h3 {[%clk 0:01:32]}  Kg7 {[%clk 0:02:34]} 26. Qb6 {[%clk 0:01:14]}  Bd5 {[%clk 0:02:27]} 27. Rb1 {[%clk 0:00:57]}  Qc8 {[%clk 0:02:23]} 28. Qd4+ {[%clk 0:00:55]}  Nf6 {[%clk 0:02:23]} 29. Kg1 {[%clk 0:00:51]}  Bc6 {[%clk 0:02:10]} 30. Rf1 {[%clk 0:00:50]}  Qe6 {[%clk 0:02:11]} 31. a5 {[%clk 0:00:44]}  h6 {[%clk 0:02:09]} 32. c4 {[%clk 0:00:38]}  Qe7 {[%clk 0:01:59]} 33. c5 {[%clk 0:00:37]}  Qe6 {[%clk 0:01:56]} 34. Kh2 {[%clk 0:00:34]}  h5 {[%clk 0:01:47]} 35. Bc4 {[%clk 0:00:30]}  Qe7 {[%clk 0:01:45]} 36. Qd6 {[%clk 0:00:20]}  Qxd6+ {[%clk 0:01:43]} 37. cxd6 {[%clk 0:00:20]}  Bd7 {[%clk 0:01:42]} 38. Re1 {[%clk 0:00:19]}  Ne8 {[%clk 0:01:39]} 39. Re7 {[%clk 0:00:19]}  Nxd6 {[%clk 0:01:38]} 40. Bxf7 {[%clk 0:00:13]}  Bc8 {[%clk 0:01:36]} 41. Rc7 {[%clk 0:00:12]}  Kf6 {[%clk 0:01:30]} 42. Bd5 {[%clk 0:00:12]}  h4 {[%clk 0:01:28]} 43. g3 {[%clk 0:00:12]}  hxg3+ {[%clk 0:01:28]} 44. Kxg3 {[%clk 0:00:12]}  Ke5 {[%clk 0:01:27]} 45. Bf3 {[%clk 0:00:12]}  g5 {[%clk 0:01:27]} 46. Bg4 {[%clk 0:00:11]}  Ne4+ {[%clk 0:01:27]} 47. Kg2 {[%clk 0:00:11]}  Bxg4 {[%clk 0:01:25]} 48. hxg4 {[%clk 0:00:11]}  Nd6 {[%clk 0:01:24]} 49. Kf3 {[%clk 0:00:11]}  Kd5 {[%clk 0:01:21]} 50. Rg7 {[%clk 0:00:11]}  b5 {[%clk 0:01:18]} 51. axb6 {[%clk 0:00:11]}  Kc6 {[%clk 0:01:16]} 52. Rg6 {[%clk 0:00:12]} 1-0


[Site "https://www.chess.com"]